Workbook

Sheet DRUK ZAMÓWIENIA
A1: 2
A4: www.pluxee.pl, e-mail: kontakt@pluxeegroup.com, tel.: 22 535 14 14 | B4: Key Account Manager/Przedstawiciel Pluxee:
B6: I. Dane Klienta (Podmiotu zamawiającego do dokumentów finansowo-księgowych):
B7: Nazwa Firmy: | I7: Adres do elektronicznej wysyłki faktury Proforma oraz informacji o statusie zamówienia:
B8: Ulica: | I8: e-mail:
B9: Kod, miasto: | I9: Adres e-mail do przesłania dokumentów księgowych:
B10: NIP: | D10: Telefon: | I10: e-mail:
B11: Nr rachunku bankowego Klienta (rachunek, z którego będą opłacane wszystkie należności wynikające z zamówienia):
B12: Zapłata przez podmiot trzeci (możliwość zapłaty przez podmiot inny niż Klient podlega akceptacji Pluxee):
B13: Nazwa, adres i NIP podmiotu trzeciego :
B14: Nr rachunku bankowego podmiotu trzeciego: | J14: Telefon:
B15: Zamawiający posiada stałe miejsce prowadzenia działaności poza terytorium Polski*
B16: Karty są wydawane osobom zajmującym eksponowane stanowisko polityczne**
B17: W przypadku konieczności wskazania na dokumentach księgowych danych ODBIORCY prosimy o uwzględnienie tego w polu UWAGI
B19: II. Zamawiam Wirtualne Karty Pluxee Nagroda z okresem ważności: | I19: IV. Proponowana data wysyłki i zasilenia kart:
B20: 12 miesięcy | D20: 18 miesięcy | I20: (dzień - miesiąc - rok):
B21: III. Specyfikacja zamówienia Wirtualnych Kart Pluxee Nagroda: | G21: Wartość (PLN) | I21: wysylka kart jest możliwa tylko w dni robocze i następuje bepośrednio do użytkowników na adresy e-mail wskazane w załączonej Specyfikacji zamówienia kart i ich zasilenia.
B22: A | C22: Łączna ilość Kart:
B23: B | C23: Łączna wartość zasileń:
B24: C | C24: Prowizja od wartości zasilenia kart (7%/min.25zł): | E24: 0.07 | G24: =IF(E24*G23<=25,25,E24*G23) -> 25 | I24: UWAGI:
B25: D | C25: Opłata za obsługę Kart (A*D): | E25: =IF($A$1=1,6.9,IF($A$1=2,9.9,IF($A$1=3,4,0))) -> 9.9 | G25: =G22*E25 -> 0
C26: Suma netto: | G26: =G23+G24+G25 -> 25
B27: E | C27: Podatek VAT (23%) (od poz. C+D): | G27: =ROUND(23%*G24,2)+ROUND(23%*SUM(G25:G25),2) -> 5.75 | I27: V. Nr tel. komórkowego na potrzeby wysyłki sms z hasłem do otwarcia pliku z przypisanymi numerami kart:
B28: F | C28: Razem do zapłaty: | G28: =SUM(G26:G27) -> 30.75 | I28: Numer tel. komórkowego:
B30: VI. Wypełnia Klient (dane osoby, która sporządziła niniejsze zamówienie oraz pieczęć firmowa): | I30: VII. Wypełnia Pluxee (dane osoby, która przyjęła niniejsze zamówienie):
B31: Imię i nazwisko: | I31: Imię i nazwisko:
B32: E-mail: | I32: Numer zamówienia:
B33: Nr telefonu:
B34: Prosimy zaznacz poniższe zgody, jeśli dotychczas ich nie wyrażałaś/eś: | I34: * Oświadczenie dotyczy wykorzystywania zakupionych usług na potrzeby stałego miejsca prowadzenia działalności, które znajduje się poza terytorium Polski, w rozumieniu art. 28b ustawy z dnia 11 marca 2004 r. o podatku od towarów i usług (Dz.U. 2004 Nr54 poz 535 VAT z późn. Zm.). ** Oświadczenie Zamwiajacego dotyczy wydawania Kart osobom zajmującym eksponowane stanowisko polityczne w rozumieniu art. 2 ust.2 ustawy z dnia 1 marca 2018 r. o przeciwdziałaniu praniu pieniędzy oraz finansowaniu terroryzmu. Administratorem Twoich danych osobowych jest Pluxee Polska Sp. z o.o. z siedzibą w Warszawie, ul. Rzymowskiego 53 ("Pluxee"). Dane kontaktowe Inspektora Ochrony Danych: privacy.pl@pluxeegroup.com, nr tel. (22) 535 11 11. Twoje dane będą przetwarzane w celach marketingowych Pluxee (podstawa przetwarzania danych to realizacja prawnie uzasadnionych interesów Pluxee w postaci marketingu produktów i usług Pluxee – art. 6 ust. 1 lit. f) RODO), w tym w sposób zautomatyzowany (profilowanie). Pluxee wykorzystuje profilowanie prowadząc statystyki i analizy Twoich zachowań oraz preferencji, związanych z zakupem lub korzystaniem z produktów i usług Pluxee w celu lepszego dopasowania do Twoich oczekiwań oferowanych produktów i usług. W wyniku profilowania dokonywanego przez Pluxee będziesz otrzymywać informacje o produktach i usługach lepiej dostosowanych do Twoich preferencji. Tylko w przypadku, gdy wyrazisz na to wyraźną zgodę, Pluxee będzie przetwarzać Twoje dane osobowe w celu profilowania, którego skutkiem będą automatycznie podejmowane decyzje, mające dla Ciebie znaczenie np. udzielenie rabatów lub ofert specjalnych (podstawa przetwarzania danych to Twoja zgoda – art. 6 ust. 1 lit. a) RODO). Podanie przez Ciebie danych osobowych jest dobrowolne. Skutkiem niepodania danych będzie brak możliwości informowania Cię o produktach i usługach Pluxee. Twoje dane mogą być przekazywane podmiotom świadczącym na naszą rzecz usługi serwisowe z zakresu IT, usługi telemarketingu oraz podmiotom przygotowującym i realizującym dla nas wysyłkę e-maili. Dane osobowe będziemy przetwarzać do czasu ewentualnego wniesienia przez Ciebie sprzeciwu wobec przetwarzania danych, względnie - odwołania zgody, a po tym okresie wyłącznie dla celów i przez okres oraz w zakresie wymaganym przez przepisy prawa lub dla zabezpieczenia ewentualnych roszczeń. Możesz żądać dostępu do swoich danych osobowych, ich sprostowania, usunięcia lub ograniczenia przetwarzania. Masz prawo wniesienia sprzeciwu wobec przetwarzania – w tym profilowania. Masz także prawo do przenoszenia swoich danych oraz prawo cofnięcia zgody w każdym czasie, co pozostanie bez wpływu na zgodność z prawem przetwarzania dokonanego przez Pluxee przed jej cofnięciem oraz masz prawo wniesienia skargi do organu nadzorczego (Prezesa Urzędu Ochrony Danych Osobowych).
C35: Wyrażam dobrowolną zgodę na otrzymywanie informacji handlowych i marketingowych od Pluxee na podany przeze mnie adres poczty elektronicznej.
C36: Wyrażam dobrowolną zgodę na prowadzenie przez *Oświadczenie dotyczy wykorzystywania zakupionych usług na potrzeby stałego miejsca prowadzenia działalności, które znajduje się poza terytorium Polski, w rozumieniu art. 28b ustawy z dnia 11 marca 2004 r. o podatku od towarów i usług (Dz.U. 2004 Nr54 poz 535 VAT z późn. Zm.). ** Oświadczenie Zamwiajacego dotyczy wydawania Kart osobom zajmującym eksponowane stanowisko polityczne w rozumieniu art. 2 ust.2 ustawy z dnia 1 marca 2018 r. o przeciwdziałaniu praniu pieniędzy oraz finansowaniu terroryzmu. Administratorem Twoich danych osobowych jest Pluxee Polska Sp. z o.o. z siedzibą w Warszawie, ul. Rzymowskiego 53 ("Pluxee "). Dane kontaktowe Inspektora Ochrony Danych: IOD.Polska@pluxee.com, nr tel. (22) 535 11 11. Twoje dane będą przetwarzane w celach marketingowych Pluxee (podstawa przetwarzania danych to realizacja prawnie uzasadnionych interesów Pluxee w postaci marketingu produktów i usług Pluxee – art. 6 ust. 1 lit. f) RODO), w tym w sposób zautomatyzowany (profilowanie). Pluxee wykorzystuje profilowanie prowadząc statystyki i analizy Twoich zachowań oraz preferencji, związanych z zakupem lub korzystaniem z produktów i usług Pluxee w celu lepszego dopasowania do Twoich oczekiwań oferowanych produktów i usług. W wyniku profilowania dokonywanego przez Pluxee będziesz otrzymywać informacje o produktach i usługach lepiej dostosowanych do Twoich preferencji. Tylko w przypadku, gdy wyrazisz na to wyraźną zgodę, Pluxee będzie przetwarzać Twoje dane osobowe w celu profilowania, którego skutkiem będą automatycznie podejmowane decyzje, mające dla Ciebie znaczenie np. udzielenie rabatów lub ofert specjalnych (podstawa przetwarzania danych to Twoja zgoda – art. 6 ust. 1 lit. a) RODO). Podanie przez Ciebie danych osobowych jest dobrowolne. Skutkiem niepodania danych będzie brak możliwości informowania Cię o produktach i usługach Pluxee. Twoje dane mogą być przekazywane podmiotom świadczącym na naszą rzecz usługi serwisowe z zakresu IT, usługi telemarketingu oraz podmiotom przygotowującym i realizującym dla nas wysyłkę e-maili. Dane osobowe będziemy przetwarzać do czasu ewentualnego wniesienia przez Ciebie sprzeciwu wobec przetwarzania danych, względnie - odwołania zgody, a po tym okresie wyłącznie dla celów i przez okres oraz w zakresie wymaganym przez przepisy prawa lub dla zabezpieczenia ewentualnych roszczeń. Możesz żądać dostępu do swoich danych osobowych, ich sprostowania, usunięcia lub ograniczenia przetwarzania. Masz prawo wniesienia sprzeciwu wobec przetwarzania – w tym profilowania. Masz także prawo do przenoszenia swoich danych oraz prawo cofnięcia zgody w każdym czasie, co pozostanie bez wpływu na zgodność z prawem przetwarzania dokonanego przez Pluxee przed jej cofnięciem oraz masz prawo wniesienia skargi do organu nadzorczego (Prezesa Urzędu Ochrony Danych Osobowych). działań marketingowych przy użyciu podanego przeze mnie numeru telefonu.
C37: Wyrażam dobrowolną zgodę na profilowanie, którego skutkiem będą automatycznie podejmowane decyzje, mające dla mnie znaczenie – jak np. udzielenie rabatów lub ofert specjalnych.
B38: Data: | D38: Pieczęć firmowa i podpis
B41: WYŻEJ WYMIENIONE DANE SĄ NIEZBĘDNE DO REALIZACJI ZAMÓWIENIA Poprzez umieszczenie podpisu pod niniejszym Zamówieniem i jego przesłanie w formie papierowej lub elektronicznej , jak również zaakceptowanie wypełnionego Zamówienia w formie mailowej Zamawiający oświadcza, że: - jest upoważniony do reprezentowania Klienta na podstawie KRS, CEIDG lub pełnomocnictwa oraz, że zapoznał się i akceptuje Ogólne Warunku Świadczenia Usług "OWUW", które stanowią integralną część zamówienia. - upoważnia Pluxee Polska Sp. z o.o. do wystawienia faktury VAT bez podpisu. Dane do faktury zostały określone w punkcie I. - zamówione Karty są udostępnione byłym lub obecnym pracownikom lub współpracownikom. Tożsamość osób otrzymujących karty jest przez nas weryfikowana, a ich dane są przez nas przechowywane. - jest administratorem danych osobowych pracowników, współpracowników, klientów lub partnerów (w tym: imię, nazwisko i adres email), którym mają zostać przekazane Wirtualne Karty Pluxee w celu realizacji Zamówienia. CZYTELNIE WYPEŁNIONE ZAMÓWIENIE PROSIMY WYSŁAĆ: - mailem na adres: kontakt@pluxeegroup.com Składając Zamówienie Klient każdorazowo zawiera Umowę na dostawę Kart wskazanych w Zamówieniu, na warunkach określonych w tym Zamówieniu i OWUW, których postanowienia zastępują postanowienia dotychczasowych, innych Umów zawartych odrębnie z Klientem.
B45: Pluxee Polska Sp. z o.o. z siedzibą w Warszawie, ul. Rzymowskiego 53, 02-697 Warszawa, Sąd Rejonowy dla m. st. Warszawy w Warszawie, XIII Wydział Gospodarczy KRS , numer KRS 0000033826, Kapitał Zakładowy 3 000 000 PLN , NIP 522-23-57-343

Sheet Specyfikacja zam. kart i zasil.
A1: WIRTUALNA KARTA NAGRODA SPECYFIKACJA ZAMÓWIENIA NOWYCH KART I ICH ZASILENIA (FORMULARZ PROSIMY WYPEŁNIAĆ DRUKOWANYMI LITERAMI)
A2: Podając poniższe dane oświadczam, że jestem administratorem danych osobowych (w tym: imię, nazwisko i adres email) pracowników, współpracowników, klientów lub partnerów, którym mają zostać przekazane Wirtualne Karty Pluxee Nagroda. Zgodnie z obowiązującymi regulacjami prawnymi dotyczącymi zasad przetwarzania danych osobowych oświadczam, że dane te mogą być przekazane do Pluxee i wydawcy Karty w celu związanym z wydaniem i użytkowaniem Wirtualnej Karty Pluxee Nagroda.
A3: I. Zamawiam i zasilam Wirtualne Karty Pluxee Nagroda według poniższej specyfikacji: (należy uzupełnić wszystkie pola, brak danych opóźni realizację całego zamówienia)
A4: Lp. | B4: Adres e-mail | C4: Imię | D4: Nazwisko | E4: Kwota doładowania karty
A5: 1
A6: =A5+1 -> 2
A7: =A6+1 -> 3
A8: 4
A9: 5
A10: 6
A11: 7
A12: 8
A13: 9
A14: 10
A15: 11
A16: 12
A17: 13
A18: 14
A19: 15
A20: 16
A21: 17
A22: 18
A23: 19
A24: 20
A25: 21
A26: 22
A27: 23
A28: 24
A29: 25
A30: 26
A31: 27
A32: 28
A33: 29
A34: 30
A35: 31
A36: 32
A37: 33
A38: 34
A39: 35
A40: 36
A41: 37
A42: 38
A43: 39
A44: 40
A45: 41
A46: 42
A47: 43
A48: 44
A49: 45
A50: 46
A51: 47
A52: 48
A53: 49
A54: 50
A55: 51
A56: 52
A57: 53
A58: 54
A59: 55
A60: 56
A61: 57
A62: 58
A63: 59
A64: 60
A65: 61
A66: 62
A67: 63
A68: 64
A69: 65
A70: 66
A71: =A70+1 -> 67
A72: 68
A73: 69
A74: 70
A75: 71
A76: 72
A77: 73
A78: 74
A79: 75
A80: 76
A81: 77
A82: 78
A83: 79
A84: 80
A85: 81
A86: 82
A87: 83
A88: 84
A89: 85
A90: 86
A91: 87
A92: 88
A93: 89
A94: 90
A95: 91
A96: 92
A97: 93
A98: 94
A99: 95
A100: 96
A101: 97
A102: 98
A103: 99
A104: 100
A105: 101
A106: 102
A107: 103
A108: 104
A109: 105
A110: 106
A111: 107
A112: 108
A113: 109
A114: 110
A115: 111
A116: 112
A117: 113
A118: 114
A119: 115
A120: 116
A121: 117
A122: 118
A123: 119
A124: 120
A125: 121
A126: 122
A127: 123
A128: 124
A129: 125
A130: 126
A131: 127
A132: 128
A133: 129
A134: 130
A135: =A134+1 -> 131
A136: 132
A137: 133
A138: 134
A139: 135
A140: 136
A141: 137
A142: 138
A143: 139
A144: 140
A145: 141
A146: 142
A147: 143
A148: 144
A149: 145
A150: 146
A151: 147
A152: 148
A153: 149
A154: 150
A155: 151
A156: 152
A157: 153
A158: 154
A159: 155
A160: 156
A161: 157
A162: 158
A163: 159
A164: 160
A165: 161
A166: 162
A167: 163
A168: 164
A169: 165
A170: 166
A171: 167
A172: 168
A173: 169
A174: 170
A175: 171
A176: 172
A177: 173
A178: 174
A179: 175
A180: 176
A181: 177
A182: 178
A183: 179
A184: 180
A185: 181
A186: 182
A187: 183
A188: 184
A189: 185
A190: 186
A191: 187
A192: 188
A193: 189
A194: 190
A195: 191
A196: 192
A197: 193
A198: 194
A199: =A198+1 -> 195
A200: 196
... 2804 more rows

Sheet Specyfikacja doładowania kart
A1: WIRTUALNA KARTA PLUXEE NAGRODA SPECYFIKACJA DOŁADOWANIA KART (FORMULARZ PROSIMY WYPEŁNIAĆ DRUKOWANYMI LITERAMI)
A2: I. Zasilam posiadane Wirtualne Karty Pluxee Nagroda według poniższej specyfikacji:
A3: Lp. | B3: KOD KARTY (Podać w przypadku doładowania posiadanych Kart) | C3: Kwota doładowania karty
A4: 1
A5: =A4+1 -> 2
A6: =A5+1 -> 3
A7: 4
A8: 5
A9: 6
A10: 7
A11: 8
A12: 9
A13: 10
A14: 11
A15: 12
A16: 13
A17: 14
A18: 15
A19: 16
A20: 17
A21: 18
A22: 19
A23: 20
A24: 21
A25: 22
A26: 23
A27: 24
A28: 25
A29: 26
A30: 27
A31: 28
A32: 29
A33: 30
A34: 31
A35: 32
A36: 33
A37: 34
A38: 35
A39: 36
A40: 37
A41: 38
A42: 39
A43: 40
A44: 41
A45: 42
A46: 43
A47: 44
A48: 45
A49: 46
A50: 47
A51: 48
A52: 49
A53: 50
A54: 51
A55: 52
A56: 53
A57: 54
A58: 55
A59: 56
A60: 57
A61: 58
A62: 59
A63: 60
A64: 61
A65: 62
A66: 63
A67: 64
A68: 65
A69: 66
A70: =A69+1 -> 67
A71: 68
A72: 69
A73: 70
A74: 71
A75: 72
A76: 73
A77: 74
A78: 75
A79: 76
A80: 77
A81: 78
A82: 79
A83: 80
A84: 81
A85: 82
A86: 83
A87: 84
A88: 85
A89: 86
A90: 87
A91: 88
A92: 89
A93: 90
A94: 91
A95: 92
A96: 93
A97: 94
A98: 95
A99: 96
A100: 97
A101: 98
A102: 99
A103: 100
A104: 101
A105: 102
A106: 103
A107: 104
A108: 105
A109: 106
A110: 107
A111: 108
A112: 109
A113: 110
A114: 111
A115: 112
A116: 113
A117: 114
A118: 115
A119: 116
A120: 117
A121: 118
A122: 119
A123: 120
A124: 121
A125: 122
A126: 123
A127: 124
A128: 125
A129: 126
A130: 127
A131: 128
A132: 129
A133: 130
A134: =A133+1 -> 131
A135: 132
A136: 133
A137: 134
A138: 135
A139: 136
A140: 137
A141: 138
A142: 139
A143: 140
A144: 141
A145: 142
A146: 143
A147: 144
A148: 145
A149: 146
A150: 147
A151: 148
A152: 149
A153: 150
A154: 151
A155: 152
A156: 153
A157: 154
A158: 155
A159: 156
A160: 157
A161: 158
A162: 159
A163: 160
A164: 161
A165: 162
A166: 163
A167: 164
A168: 165
A169: 166
A170: 167
A171: 168
A172: 169
A173: 170
A174: 171
A175: 172
A176: 173
A177: 174
A178: 175
A179: 176
A180: 177
A181: 178
A182: 179
A183: 180
A184: 181
A185: 182
A186: 183
A187: 184
A188: 185
A189: 186
A190: 187
A191: 188
A192: 189
A193: 190
A194: 191
A195: 192
A196: 193
A197: 194
A198: =A197+1 -> 195
A199: 196
A200: 197
... 2803 more rows

Sheet Arkusz3 (hidden)
